lending/lending_fUSD_20250808
["ID","MTS","AMOUNT","RATE_DAILY","PERIOD"]
[378040619,1754675451683,-590.54,0.00024418,2]
[378040620,1754675451693,-1341.29,0.00024418,2]
[378040621,1754675451703,-1509.07,0.00024418,2]
[378040622,1754675451713,-2782.77,0.00024418,2]
[378040623,1754675451723,-709.42,0.00024418,2]
[378040624,1754675451732,-2500.0,0.00024419,7]
[378040625,1754675451741,-2500.0,0.00024428,7]
[378040626,1754675451751,-2500.0,0.00024437,7]
[378040627,1754675451760,-1000.0,0.00024444,2]
[378040628,1754675451769,-2500.0,0.00024446,7]
[378040629,1754675451778,-2500.0,0.00024455,7]
[378040630,1754675451788,-2500.0,0.00024463,7]
[378040631,1754675451797,-492.02,0.00024468,2]
[378040632,1754675451807,-452.57,0.00024468,2]
[378040633,1754675451817,-1200.74,0.00024468,2]
[378040634,1754675451826,-1059.86,0.00024468,2]
[378040635,1754675451837,-1430.07,0.00024468,2]
[378040636,1754675451847,-1392.24,0.00024468,2]
[378040637,1754675451857,-2500.0,0.00024472,7]
[378040638,1754675451867,-2500.0,0.00024481,7]
[378040639,1754675451876,-2077.23007896,0.0002449,7]
[378040640,1754675451907,-1888.0,0.00021355,3]
[378040641,1754675451917,-3776.0,0.00023595,3]
[378040642,1754675451926,-69.97844222,0.0002449,7]
[378040646,1754675692841,153.3,0.00013699,2]
[378040647,1754675731782,250.0,0.00015,2]
[378040648,1754675775766,150.0,0.00021319,120]
[378040649,1754675857783,666.0,0.00017897,3]
[378040650,1754675979256,504.59,0.00017897,2]
[378040670,1754676631691,-2500.0,0.00018407,2]
[378040671,1754676631702,-2500.0,0.00018407,2]
[378040672,1754676631711,-250.0,0.00018407,2]
[378040673,1754676631721,-174.13200847,0.00018407,2]
[378040674,1754676631730,-174.13200847,0.00018407,2]
[378040675,1754676631740,-2500.0,0.00018416,2]
[378040676,1754676631749,-1107.0,0.00018421,2]
[378040677,1754676631759,-174.13200847,0.00018424,2]
[378040678,1754676631768,-5108.23480542,0.000187,2]
[378040679,1754676631778,-719.8183,0.00018741,2]
[378040680,1754676631787,-9035.71131501,0.00018837,2]
[378040681,1754676631802,-3026.81698499,0.00018837,2]
[378040682,1754676631813,-8317.94024855,0.00018982,2]
[378040683,1754676631822,-821.95345992,0.00018991,2]
[378040684,1754676631832,-670.0,0.00018991,2]
[378040685,1754676631843,-23687.93694166,0.00018992,2]
[378040686,1754676631852,-1624.49,0.00019,2]
[378040687,1754676631861,-2372.35956488,0.00019,2]
[378040688,1754676631874,-1782.63432392,0.00019,2]
[378040689,1754676631883,-174.13,0.00019178,2]
[378040690,1754676631893,-181.312588,0.00019725,2]
[378040691,1754676631902,-575.03270848,0.00019728,2]
[378040692,1754676631912,-490.01845213,0.00020083,2]
[378040693,1754676631922,-4922.5072174,0.00020185,2]
[378040694,1754676631931,-2500.0,0.00020248,2]
[378040695,1754676631940,-500.0,0.00020248,2]
[378040696,1754676631950,-500.0,0.00020248,2]
[378040697,1754676631960,-300.0,0.00020248,2]
[378040698,1754676631970,-2500.0,0.00020248,2]
[378040699,1754676631979,-500.0,0.00020248,2]
[378040700,1754676631989,-250.0,0.00020248,2]
[378040701,1754676631998,-181.312588,0.00020273,2]
[378040702,1754676632007,-1000.0,0.00020274,2]
[378040703,1754676632016,-153.3,0.00020951,2]
[378040704,1754676632026,-500.0,0.00020968,2]
[378040705,1754676632035,-329.85,0.00020987,2]
[378040706,1754676632044,-178.61,0.00020991,2]
[378040707,1754676632053,-150.0,0.00020995,2]
[378040708,1754676632067,-150.0,0.00021034,2]
[378040710,1754676632077,-192.082,0.00021034,2]
[378040712,1754676632086,-150.421,0.00021034,2]
[378040713,1754676632095,-188.487,0.00021034,2]
[378040714,1754676632105,-224.506,0.00021034,2]
[378040715,1754676632115,-150.0,0.00021034,2]
[378040716,1754676632125,-150.155,0.00021034,2]
[378040717,1754676632134,-151.0,0.00021034,2]
[378040718,1754676632144,-3364.0,0.00021034,2]
[378040719,1754676632153,-372.461,0.00021034,2]
[378040720,1754676632163,-892.0,0.00021034,2]
[378040721,1754676632173,-1171.0,0.00021034,2]
[378040722,1754676632182,-6077.0,0.00021034,2]
[378040723,1754676632193,-4464.3,0.00021218,2]
[378040724,1754676632203,-12848.52,0.00021225,2]
[378040725,1754676632213,-448.77,0.00021259,2]
[378040726,1754676632223,-164.26,0.0002126,2]
[378040727,1754676632233,-3532.13,0.00021272,2]
[378040728,1754676632247,-150.0,0.00021319,2]
[378040729,1754676632256,-165.46,0.00021341,2]
[378040730,1754676632266,-200.0,0.00021405,2]
[378040731,1754676632278,-6081.49,0.00021421,2]
[378040732,1754676632288,-3324.65,0.00021542,2]
[378040733,1754676632297,-338.39,0.00021567,2]
[378040734,1754676632307,-1593.09,0.00021605,2]
[378040737,1754676632317,-172.2,0.00021645,2]
[378040740,1754676632326,-172.2,0.00021699,2]
[378040742,1754676632336,-172.2,0.00021753,2]
[378040744,1754676632345,-191.97,0.00021788,2]
[378040745,1754676632355,-172.2,0.00021807,2]
[378040746,1754676632364,-172.2,0.00021861,2]
[378040747,1754676632374,-5000.0,0.00021918,2]
[378040749,1754676632383,-150.0,0.00021918,2]
[378040751,1754676632393,-241.91014258,0.00021918,2]
[378040753,1754676632402,-167.18,0.00022122,2]
[378040755,1754676632411,-160.0,0.00022347,2]
[378040757,1754676632421,-211.62674257,0.00022347,2]
[378040759,1754676632430,-842.44706758,0.00022347,2]
[378040760,1754676632439,-457.64618948,0.00022347,2]
[378040761,1754676632451,-150.99,0.00022562,2]
[378040762,1754676632460,-164.26,0.00022677,2]
[378040763,1754676632469,-1000.0,0.0002268,2]
[378040764,1754676632478,-660.0,0.00023,7]
[378040765,1754676632488,-660.0,0.00023288,7]
[378040766,1754676632497,-150.0,0.000234,2]
[378040767,1754676632507,-660.0,0.00023562,7]
[378040768,1754676632517,-500.0,0.00023794,2]
[378040769,1754676632526,-267.46074303,0.00023832,2]
[378040770,1754676632535,-361.16383774,0.00023832,2]
[378040771,1754676632573,-4838.2730067,0.00023832,2]
[378040772,1754676632583,-660.0,0.00023836,7]
[378040773,1754676632592,-3845.02645294,0.00023887,2]
[378040774,1754676632604,-1546.78955475,0.00023887,2]
[378040775,1754676632617,-825.22044525,0.00023942,2]
[378040776,1754676632636,-621.17768747,0.00023942,2]
[378040777,1754676632648,-402.54798402,0.00023942,2]
[378040778,1754676632657,-892.0,0.00024034,2]
[378040779,1754676632667,-1171.0,0.00024034,2]
[378040780,1754676632676,-562.05,0.00024034,2]
[378040781,1754676632686,-164.26,0.00024094,2]
[378040782,1754676632698,-660.0,0.0002411,7]
[378040783,1754676632708,-3359.36997284,0.00024152,2]
[378040784,1754676632717,-660.0,0.00024164,7]
[378040785,1754676632728,-582.5042,0.00024222,2]
[378040786,1754676632737,-500.0,0.00024242,2]
[378040787,1754676632746,-175.29348244,0.00024242,2]
[378040788,1754676632756,-2500.0,0.00024243,7]
[378040789,1754676632766,-2500.0,0.00024252,7]
[378040790,1754676632776,-2500.0,0.00024261,7]
[378040791,1754676632785,-211.62674257,0.00024261,7]
[378040792,1754676632797,-457.64618948,0.00024261,7]
[378040793,1754676632807,-842.44706758,0.00024261,7]
[378040794,1754676632817,-2500.0,0.0002427,7]
[378040795,1754676632826,-2500.0,0.00024279,7]
[378040796,1754676632835,-2500.0,0.00024287,7]
[378040797,1754676632846,-2500.0,0.00024296,7]
[378040798,1754676632855,-2500.0,0.00024305,7]
[378040799,1754676632865,-2500.0,0.00024314,7]
[378040800,1754676632876,-2500.0,0.00024323,7]
[378040801,1754676632886,-2500.0,0.00024331,7]
[378040802,1754676632895,-2500.0,0.0002434,7]
[378040803,1754676632904,-2500.0,0.00024349,7]
[378040804,1754676632913,-2500.0,0.00024358,7]
[378040805,1754676632922,-2500.0,0.00024367,7]
[378040806,1754676632931,-2500.0,0.00024375,7]
[378040807,1754676632942,-660.0,0.00024384,7]
[378040808,1754676632952,-2500.0,0.00024384,7]
[378040809,1754676632961,-2500.0,0.00024393,7]
[378040810,1754676632971,-211.62674257,0.00024393,7]
[378040811,1754676632981,-457.64618948,0.00024393,7]
[378040812,1754676632991,-842.44706758,0.00024393,7]
[378040813,1754676633000,-2500.0,0.00024402,7]
[378040814,1754676633010,-1022.75098,0.00024468,2]
[378040815,1754676633019,-352.79147882,0.0002449,7]
[378040816,1754676633029,-1000.0,0.00024495,2]
[378040817,1754676633039,-2500.0,0.00024499,7]
[378040818,1754676633048,-2500.0,0.00024507,7]
[378040819,1754676633059,-2500.0,0.00024516,7]
[378040820,1754676633069,-2500.0,0.00024525,7]
[378040821,1754676633079,-2500.0,0.00024534,7]
[378040822,1754676633088,-2500.0,0.00024543,7]
[378040823,1754676633099,-2500.0,0.00024551,7]
[378040824,1754676633110,-473.07206516,0.00024557,2]
[378040825,1754676633120,-179.67553214,0.00024557,2]
[378040826,1754676633130,-2500.0,0.0002456,7]
[378040827,1754676633140,-2500.0,0.00024569,7]
[378040828,1754676633149,-2500.0,0.00024578,7]
[378040829,1754676633159,-150.0,0.0002458,2]
[378040830,1754676633171,-2500.0,0.00024587,7]
[378040831,1754676633181,-2500.0,0.00024595,7]
[378040832,1754676633191,-2500.0,0.00024604,7]
[378040833,1754676633202,-2500.0,0.00024613,7]
[378040834,1754676633212,-2500.0,0.00024622,7]
[378040835,1754676633222,-2500.0,0.00024631,7]
[378040836,1754676633231,-2500.0,0.00024639,7]
[378040837,1754676633242,-457.64618948,0.0002464,7]
[378040838,1754676633252,-842.44706758,0.0002464,7]
[378040839,1754676633262,-2500.0,0.00024648,7]
[378040840,1754676633271,-2500.0,0.00024657,7]
[378040841,1754676633282,-400.0,0.00024657,2]
[378040842,1754676633292,-400.0,0.00024657,2]
[378040843,1754676633301,-400.0,0.00024657,2]
[378040844,1754676633309,-400.0,0.00024657,2]
[378040845,1754676633318,-400.0,0.00024657,2]
[378040846,1754676633328,-400.0,0.00024657,2]
[378040847,1754676633338,-400.0,0.00024657,2]
[378040848,1754676633347,-400.0,0.00024657,2]
[378040849,1754676633357,-400.0,0.00024657,2]
[378040850,1754676633368,-430.87,0.00024657,2]
[378040851,1754676633378,-400.0,0.00024657,2]
[378040852,1754676633388,-400.0,0.00024657,2]
[378040853,1754676633398,-175.00036532,0.00024657,2]
[378040854,1754676633408,-400.0,0.00024657,2]
[378040855,1754676633418,-400.0,0.00024657,2]
[378040856,1754676633428,-400.0,0.00024657,2]
[378040857,1754676633438,-415.17,0.00024657,2]
[378040858,1754676633447,-400.0,0.00024657,2]
[378040859,1754676633457,-400.0,0.00024657,2]
[378040860,1754676633466,-400.0,0.00024657,2]
[378040861,1754676633476,-400.0,0.00024657,2]
[378040862,1754676633486,-400.0,0.00024657,2]
[378040863,1754676633495,-400.0,0.00024657,2]
[378040864,1754676633505,-400.0,0.00024657,2]
[378040865,1754676633515,-400.0,0.00024657,2]
[378040866,1754676633524,-476.82268364,0.00024657,2]
[378040867,1754676633534,-400.0,0.00024657,2]
[378040868,1754676633544,-400.0,0.00024657,2]
[378040869,1754676633554,-400.0,0.00024657,2]
[378040870,1754676633563,-401.43,0.00024657,2]
[378040871,1754676633573,-400.0,0.00024657,2]
[378040872,1754676633584,-400.0,0.00024657,2]
[378040873,1754676633594,-400.0,0.00024657,2]
[378040874,1754676633603,-400.0,0.00024657,2]
[378040875,1754676633613,-400.0,0.00024657,2]
[378040876,1754676633624,-400.0,0.00024657,2]
[378040877,1754676633634,-400.0,0.00024657,2]
[378040878,1754676633643,-211.13338352,0.00024657,2]
[378040879,1754676633653,-400.0,0.00024657,2]
[378040880,1754676633662,-460.79,0.00024657,2]
[378040881,1754676633671,-400.0,0.00024657,2]
[378040882,1754676633681,-406.97,0.00024657,2]
[378040883,1754676633691,-400.0,0.00024657,2]
[378040884,1754676633704,-400.0,0.00024657,2]
[378040885,1754676633716,-400.0,0.00024657,2]
[378040886,1754676633726,-400.0,0.00024657,2]
[378040887,1754676633735,-400.0,0.00024657,2]
[378040888,1754676633745,-400.0,0.00024657,2]
[378040889,1754676633755,-541.97,0.00024657,2]
[378040890,1754676633764,-472.95,0.00024657,2]
[378040891,1754676633774,-400.0,0.00024657,2]
[378040892,1754676633784,-400.0,0.00024657,2]
[378040893,1754676633793,-400.0,0.00024657,2]
[378040894,1754676633805,-400.0,0.00024657,2]
[378040895,1754676633815,-400.0,0.00024657,2]
[378040896,1754676633825,-400.0,0.00024657,2]
[378040897,1754676633835,-400.0,0.00024657,2]
[378040898,1754676633844,-599.68,0.00024657,2]
[378040899,1754676633854,-400.0,0.00024657,2]
[378040900,1754676633863,-400.0,0.00024657,2]
[378040901,1754676633873,-479.76,0.00024657,2]
[378040902,1754676633883,-400.0,0.00024657,2]
[378040903,1754676633893,-405.38819811,0.00024657,2]
[378040904,1754676633903,-506.91,0.00024657,2]
[378040905,1754676633912,-400.0,0.00024657,2]
[378040906,1754676633922,-249.95796675,0.00024657,2]
[378040907,1754676633931,-400.0,0.00024657,2]
[378040908,1754676633940,-400.0,0.00024657,2]
[378040909,1754676633954,-409.98021162,0.00024657,2]
[378040910,1754676633963,-236.06859356,0.00024657,2]
[378040911,1754676633972,-400.0,0.00024657,2]
[378040912,1754676633982,-415.88086512,0.00024657,2]
[378040913,1754676633991,-488.91455318,0.00024657,2]
[378040914,1754676634001,-400.0,0.00024657,2]
[378040915,1754676634011,-203.69506816,0.00024657,2]
[378040916,1754676634021,-400.0,0.00024657,2]
[378040917,1754676634030,-400.0,0.00024657,2]
[378040918,1754676634095,-416.02,0.00024657,2]
[378040919,1754676634104,-400.0,0.00024657,2]
[378040920,1754676634112,-400.0,0.00024657,2]
[378040921,1754676634120,-400.0,0.00024657,2]
[378040922,1754676634129,-400.0,0.00024657,2]
[378040923,1754676634139,-400.0,0.00024657,2]
[378040924,1754676634148,-400.0,0.00024657,2]
[378040925,1754676634158,-400.0,0.00024657,2]
[378040926,1754676634168,-400.0,0.00024657,2]
[378040927,1754676634177,-400.0,0.00024657,2]
[378040928,1754676634187,-400.0,0.00024657,2]
[378040929,1754676634199,-400.0,0.00024657,2]
[378040930,1754676634209,-400.0,0.00024657,2]
[378040931,1754676634218,-400.0,0.00024657,2]
[378040932,1754676634227,-400.0,0.00024657,2]
[378040933,1754676634237,-400.0,0.00024657,2]
[378040934,1754676634247,-400.0,0.00024657,2]
[378040935,1754676634266,-400.0,0.00024657,2]
[378040936,1754676634276,-400.0,0.00024657,2]
[378040937,1754676634286,-400.0,0.00024657,2]
[378040938,1754676634297,-400.0,0.00024657,2]
[378040939,1754676634307,-400.0,0.00024657,2]
[378040940,1754676634316,-400.0,0.00024657,2]
[378040941,1754676634326,-400.0,0.00024657,2]
[378040942,1754676634336,-547.1,0.00024657,2]
[378040943,1754676634345,-400.0,0.00024657,2]
[378040944,1754676634355,-400.0,0.00024657,2]
[378040945,1754676634365,-400.0,0.00024657,2]
[378040946,1754676634374,-542.35,0.00024657,2]
[378040947,1754676634384,-400.0,0.00024657,2]
[378040948,1754676634392,-400.0,0.00024657,2]
[378040949,1754676634401,-491.14,0.00024657,2]
[378040950,1754676634410,-400.0,0.00024657,2]
[378040951,1754676634418,-400.0,0.00024657,2]
[378040952,1754676634427,-400.0,0.00024657,2]
[378040953,1754676634435,-400.0,0.00024657,2]
[378040954,1754676634445,-400.0,0.00024657,2]
[378040955,1754676634453,-400.0,0.00024657,2]
[378040956,1754676634462,-400.0,0.00024657,2]
[378040957,1754676634470,-454.4,0.00024657,2]
[378040958,1754676634476,-400.0,0.00024657,2]
[378040959,1754676634483,-400.0,0.00024657,2]
[378040960,1754676634489,-400.0,0.00024657,2]
[378040961,1754676634496,-450.88,0.00024657,2]
[378040962,1754676634505,-400.0,0.00024657,2]
[378040963,1754676634514,-400.0,0.00024657,2]
[378040964,1754676634523,-400.0,0.00024657,2]
[378040965,1754676634532,-400.0,0.00024657,2]
[378040966,1754676634541,-400.0,0.00024657,2]
[378040967,1754676634550,-400.0,0.00024657,2]
[378040968,1754676634559,-400.0,0.00024657,2]
[378040969,1754676634569,-400.0,0.00024657,2]
[378040970,1754676634578,-400.0,0.00024657,2]
[378040971,1754676634587,-342.23,0.00024657,2]
[378040972,1754676634596,-400.0,0.00024657,2]
[378040973,1754676634605,-400.0,0.00024657,2]
[378040974,1754676634614,-400.0,0.00024657,2]
[378040975,1754676634623,-400.0,0.00024657,2]
[378040976,1754676634632,-400.0,0.00024657,2]
[378040977,1754676634641,-412.19,0.00024657,2]
[378040978,1754676634650,-400.0,0.00024657,2]
[378040979,1754676634660,-400.0,0.00024657,2]
[378040980,1754676634669,-400.0,0.00024657,2]
[378040981,1754676634678,-478.7,0.00024657,2]
[378040982,1754676634687,-306.15376324,0.00024657,2]
[378040983,1754676634698,-400.0,0.00024657,2]
[378040984,1754676634708,-519.38507036,0.00024657,2]
[378040985,1754676634717,-400.0,0.00024657,2]
[378040986,1754676634726,-400.0,0.00024657,2]
[378040987,1754676634735,-400.0,0.00024657,2]
[378040988,1754676634744,-400.0,0.00024657,2]
[378040989,1754676634754,-400.0,0.00024657,2]
[378040990,1754676634763,-400.0,0.00024657,2]
[378040991,1754676634773,-400.0,0.00024657,2]
[378040992,1754676634782,-400.0,0.00024657,2]
[378040993,1754676634792,-400.0,0.00024657,2]
[378040994,1754676634803,-473.55,0.00024657,2]
[378040995,1754676634812,-400.0,0.00024657,2]
[378040996,1754676634821,-400.0,0.00024657,2]
[378040997,1754676634831,-400.0,0.00024657,2]
[378040998,1754676634841,-951.46,0.00024657,2]
[378040999,1754676634850,-400.0,0.00024657,2]
[378041000,1754676634859,-400.0,0.00024657,2]
[378041001,1754676634871,-400.0,0.00024657,2]
[378041002,1754676634880,-400.0,0.00024657,2]
[378041003,1754676634890,-400.0,0.00024657,2]
[378041004,1754676634899,-400.0,0.00024657,2]
[378041005,1754676634909,-400.0,0.00024657,2]
[378041006,1754676634918,-500.0,0.00024657,2]
[378041007,1754676634927,-400.0,0.00024657,2]
[378041008,1754676634937,-943.18923535,0.00024657,7]
[378041009,1754676634946,-400.0,0.00024657,2]
[378041010,1754676634954,-400.0,0.00024657,2]
[378041011,1754676634963,-400.0,0.00024657,2]
[378041012,1754676634972,-400.0,0.00024657,2]
[378041013,1754676634981,-400.0,0.00024657,2]
[378041014,1754676634991,-400.0,0.00024657,2]
[378041015,1754676635000,-400.0,0.00024657,2]
[378041016,1754676635010,-400.0,0.00024657,2]
[378041017,1754676635019,-400.0,0.00024657,2]
[378041018,1754676635028,-400.0,0.00024657,2]
[378041019,1754676635039,-400.0,0.00024657,2]
[378041020,1754676635048,-400.0,0.00024657,2]
[378041021,1754676635057,-400.0,0.00024657,2]
[378041022,1754676635066,-400.0,0.00024657,2]
[378041023,1754676635075,-360.23,0.00024657,2]
[378041024,1754676635084,-400.0,0.00024657,2]
[378041025,1754676635093,-400.0,0.00024657,2]
[378041026,1754676635103,-400.0,0.00024657,2]
[378041027,1754676635112,-5109.17,0.00024657,2]
[378041028,1754676635122,-400.0,0.00024657,2]
[378041029,1754676635131,-400.0,0.00024657,2]
[378041030,1754676635141,-408.8868818,0.00024657,2]
[378041031,1754676635150,-400.0,0.00024657,2]
[378041032,1754676635159,-400.0,0.00024657,2]
[378041033,1754676635169,-400.0,0.00024657,2]
[378041034,1754676635180,-400.0,0.00024657,2]
[378041035,1754676635190,-400.0,0.00024657,2]
[378041036,1754676635199,-400.0,0.00024657,2]
[378041037,1754676635209,-400.0,0.00024657,2]
[378041038,1754676635219,-400.0,0.00024657,2]
[378041039,1754676635229,-400.0,0.00024657,2]
[378041040,1754676635238,-400.0,0.00024657,2]
[378041041,1754676635248,-400.0,0.00024657,2]
[378041042,1754676635258,-400.0,0.00024657,2]
[378041043,1754676635269,-400.0,0.00024657,2]
[378041044,1754676635280,-525.57,0.00024657,2]
[378041045,1754676635290,-528.46,0.00024657,2]
[378041046,1754676635300,-400.0,0.00024657,2]
[378041047,1754676635309,-400.0,0.00024657,2]
[378041048,1754676635319,-400.0,0.00024657,2]
[378041049,1754676635329,-405.48008543,0.00024657,2]
[378041050,1754676635339,-400.0,0.00024657,2]
[378041051,1754676635348,-400.0,0.00024657,2]
[378041052,1754676635358,-400.0,0.00024657,2]
[378041053,1754676635368,-400.0,0.00024657,2]
[378041054,1754676635377,-322.01568845,0.00024657,2]
[378041055,1754676635387,-400.0,0.00024657,2]
[378041056,1754676635396,-332.98754337,0.00024657,2]
[378041057,1754676635546,-67.01245663,0.00024657,2]
[378041058,1754676635556,-400.0,0.00024657,2]
[378041059,1754676635565,-400.0,0.00024657,2]
[378041060,1754676635575,-400.0,0.00024657,2]
[378041061,1754676635584,-400.0,0.00024657,2]
[378041062,1754676635593,-400.0,0.00024657,2]
[378041063,1754676635603,-400.0,0.00024657,2]
[378041064,1754676635612,-400.0,0.00024657,2]
[378041065,1754676635621,-400.0,0.00024657,2]
[378041066,1754676635630,-400.0,0.00024657,2]
[378041067,1754676635639,-400.0,0.00024657,2]
[378041068,1754676635648,-400.0,0.00024657,2]
[378041069,1754676635657,-400.0,0.00024657,2]
[378041070,1754676635666,-400.0,0.00024657,2]
[378041071,1754676635675,-400.0,0.00024657,2]
[378041072,1754676635684,-400.0,0.00024657,2]
[378041073,1754676635694,-400.0,0.00024657,2]
[378041074,1754676635703,-400.0,0.00024657,2]
[378041075,1754676635713,-406.23,0.00024657,2]
[378041076,1754676635722,-496.35,0.00024657,2]
[378041077,1754676635731,-400.0,0.00024657,2]
[378041078,1754676635740,-401.0667245,0.00024657,2]
[378041079,1754676635749,-400.0,0.00024657,2]
[378041080,1754676635758,-400.0,0.00024657,2]
[378041081,1754676635767,-400.0,0.00024657,2]
[378041082,1754676635776,-158.25248453,0.00024657,2]
[378041083,1754676635785,-481.06,0.00024657,2]
[378041084,1754676635795,-400.0,0.00024657,2]
[378041085,1754676635807,-400.0,0.00024657,2]
[378041086,1754676635816,-400.0,0.00024657,2]
[378041087,1754676635825,-400.0,0.00024657,2]
[378041088,1754676635835,-470.79,0.00024657,2]
[378041089,1754676635845,-400.0,0.00024657,2]
[378041090,1754676635854,-400.0,0.00024657,2]
[378041091,1754676635863,-400.0,0.00024657,2]
[378041092,1754676635873,-478.09900746,0.00024657,2]
[378041093,1754676635882,-400.0,0.00024657,2]
[378041094,1754676635891,-400.0,0.00024657,2]
[378041095,1754676635901,-400.0,0.00024657,2]
[378041096,1754676635910,-400.0,0.00024657,2]
[378041097,1754676635919,-400.0,0.00024657,2]
[378041098,1754676635928,-400.0,0.00024657,2]
[378041099,1754676635937,-400.0,0.00024657,2]
[378041100,1754676635947,-400.0,0.00024657,2]
[378041101,1754676635956,-400.0,0.00024657,2]
[378041102,1754676635968,-400.0,0.00024657,2]
[378041103,1754676635977,-400.0,0.00024657,2]
[378041104,1754676635987,-400.0,0.00024657,2]
[378041105,1754676635996,-400.0,0.00024657,2]
[378041106,1754676636007,-400.0,0.00024657,2]
[378041107,1754676636016,-400.0,0.00024657,2]
[378041108,1754676636026,-400.0,0.00024657,2]
[378041109,1754676636035,-400.0,0.00024657,2]
[378041110,1754676636045,-400.0,0.00024657,2]
[378041111,1754676636054,-400.0,0.00024657,2]
[378041112,1754676636063,-400.0,0.00024657,2]
[378041113,1754676636073,-400.49262054,0.00024657,2]
[378041114,1754676636082,-514.55543991,0.00024657,2]
[378041115,1754676636091,-400.0,0.00024657,2]
[378041116,1754676636100,-400.0,0.00024657,2]
[378041117,1754676636109,-400.0,0.00024657,2]
[378041118,1754676636118,-400.0,0.00024657,2]
[378041119,1754676636127,-400.0,0.00024657,2]
[378041120,1754676636136,-400.0,0.00024657,2]
[378041121,1754676636146,-400.0,0.00024657,2]
[378041122,1754676636155,-301.02896685,0.00024657,2]
[378041123,1754676636165,-400.0,0.00024657,2]
[378041124,1754676636175,-400.0,0.00024657,2]
[378041125,1754676636185,-429.16,0.00024657,2]
[378041126,1754676636195,-400.0,0.00024657,2]
[378041127,1754676636205,-400.0,0.00024657,2]
[378041128,1754676636214,-400.0,0.00024657,2]
[378041129,1754676636224,-400.0,0.00024657,2]
[378041130,1754676636233,-485.44,0.00024657,2]
[378041131,1754676636242,-500.0,0.00024657,2]
[378041132,1754676636252,-400.0,0.00024657,2]
[378041133,1754676636261,-400.0,0.00024657,2]
[378041134,1754676636271,-498.69,0.00024657,2]
[378041135,1754676636280,-400.0,0.00024657,2]
[378041136,1754676636289,-400.0,0.00024657,2]
[378041137,1754676636298,-400.0,0.00024657,2]
[378041138,1754676636307,-439.81,0.00024657,2]
[378041139,1754676636317,-1000.0,0.00024658,2]
[378041140,1754676636326,-297.5121259,0.00024659,2]
[378041141,1754676636335,-400.0,0.0002469,2]
[378041142,1754676636344,-541.05968501,0.0002469,2]
[378041143,1754676636353,-400.0,0.0002469,2]
[378041144,1754676636363,-400.0,0.0002469,2]
[378041145,1754676636372,-400.0,0.0002469,2]
[378041146,1754676636381,-400.0,0.0002469,2]
[378041147,1754676636390,-400.0,0.0002469,2]
[378041148,1754676636399,-400.52,0.0002469,2]
[378041149,1754676636409,-400.0,0.0002469,2]
[378041150,1754676636418,-400.0,0.0002469,2]
[378041151,1754676636427,-400.0,0.0002469,2]
[378041152,1754676636436,-400.0,0.0002469,2]
[378041153,1754676636445,-400.0,0.0002469,2]
[378041154,1754676636454,-400.0,0.0002469,2]